[Event "Late-Titled-Tuesday-Blitz-May-28-2024"]
[Site "Chess.com"]
[Date "2024.05.28"]
[Round "5"]
[White "secretworker2027"]
[Black "Abund"]
[Result "0-1"]
[WhiteElo "2618"]
[BlackElo "2817"]
[TimeControl "180+1"]
[EndTime "14:57:54 PDT"]
[Termination "Abund won by resignation"]

1. e4 {[%clk 0:03:00.9]} 1... c6 {[%clk 0:03:00.2]} 2. Nf3 {[%clk 0:02:59.7]}
2... d5 {[%clk 0:03:01.1]} 3. d3 {[%clk 0:02:59.9]} 3... Qc7 {[%clk 0:02:59.7]}
4. Qe2 {[%clk 0:02:55.9]} 4... g6 {[%clk 0:02:55]} 5. g3 {[%clk 0:02:53.8]} 5...
Bg7 {[%clk 0:02:54.8]} 6. Bg2 {[%clk 0:02:54.3]} 6... e5 {[%clk 0:02:51.3]} 7.
O-O {[%clk 0:02:49.6]} 7... Ne7 {[%clk 0:02:48.8]} 8. Nc3 {[%clk 0:02:36]} 8...
O-O {[%clk 0:02:41.5]} 9. b3 {[%clk 0:02:26.4]} 9... Re8 {[%clk 0:02:17.5]} 10.
Re1 {[%clk 0:02:17.8]} 10... Nd7 {[%clk 0:02:07]} 11. a4 {[%clk 0:02:13.4]}
11... a5 {[%clk 0:01:57.1]} 12. exd5 {[%clk 0:02:12.3]} 12... Nxd5 {[%clk
0:01:53.8]} 13. Nxd5 {[%clk 0:02:10.8]} 13... cxd5 {[%clk 0:01:54.2]} 14. Bb2
{[%clk 0:02:08.6]} 14... b6 {[%clk 0:01:34]} 15. Nd4 {[%clk 0:02:04.9]} 15...
Bb7 {[%clk 0:01:29.3]} 16. Nb5 {[%clk 0:02:04.7]} 16... Qb8 {[%clk 0:01:21]} 17.
Ba3 {[%clk 0:02:00.9]} 17... Re6 {[%clk 0:01:11.8]} 18. Qd2 {[%clk 0:01:45.9]}
18... Nc5 {[%clk 0:01:02.9]} 19. Rad1 {[%clk 0:01:33.4]} 19... d4 {[%clk
0:00:55.5]} 20. Bxb7 {[%clk 0:01:30.3]} 20... Qxb7 {[%clk 0:00:55.7]} 21. Bxc5
{[%clk 0:01:30.8]} 21... bxc5 {[%clk 0:00:56]} 22. Re2 {[%clk 0:01:30.7]} 22...
f5 {[%clk 0:00:53.2]} 23. Rde1 {[%clk 0:01:29.9]} 23... Qb6 {[%clk 0:00:45.6]}
24. c3 {[%clk 0:01:26.9]} 24... Rae8 {[%clk 0:00:44]} 25. cxd4 {[%clk
0:01:26.9]} 25... cxd4 {[%clk 0:00:44.5]} 26. Qc1 {[%clk 0:01:23.5]} 26... Rc6
{[%clk 0:00:44.1]} 27. Qa3 {[%clk 0:01:23.1]} 27... e4 {[%clk 0:00:41]} 28. b4
{[%clk 0:01:18.1]} 28... Kh8 {[%clk 0:00:32.3]} 29. dxe4 {[%clk 0:01:13.4]}
29... axb4 {[%clk 0:00:31.4]} 30. Qd3 {[%clk 0:01:07.3]} 30... Rce6 {[%clk
0:00:10.1]} 31. exf5 {[%clk 0:01:06.7]} 31... gxf5 {[%clk 0:00:10.4]} 32. Qc4
{[%clk 0:00:42]} 32... Rxe2 {[%clk 0:00:08]} 33. Rxe2 {[%clk 0:00:42.9]} 33...
Rd8 {[%clk 0:00:03.9]} 34. Qf7 {[%clk 0:00:38.1]} 34... Qg6 {[%clk 0:00:03.4]}
35. Qe7 {[%clk 0:00:37]} 35... Qf6 {[%clk 0:00:03.1]} 36. Qxb4 {[%clk
0:00:35.3]} 36... d3 {[%clk 0:00:03.6]} 37. Rd2 {[%clk 0:00:34.9]} 37... Bh6
{[%clk 0:00:03.4]} 38. Rd1 {[%clk 0:00:33.1]} 38... d2 {[%clk 0:00:02.8]} 39. f4
{[%clk 0:00:27.4]} 39... Bf8 {[%clk 0:00:03.2]} 40. Qc3 {[%clk 0:00:25.9]} 40...
Qxc3 {[%clk 0:00:03.5]} 41. Nxc3 {[%clk 0:00:26.7]} 41... Bb4 {[%clk 0:00:03.9]}
42. Nb1 {[%clk 0:00:21]} 42... Ra8 {[%clk 0:00:03]} 43. Kf2 {[%clk 0:00:18.6]}
43... Re8 {[%clk 0:00:01.9]} 44. Nxd2 {[%clk 0:00:18]} 44... Rd8 {[%clk
0:00:02.2]} 45. Ke2 {[%clk 0:00:18.3]} 45... Re8+ {[%clk 0:00:02.7]} 46. Kd3
{[%clk 0:00:18.5]} 46... Rd8+ {[%clk 0:00:03.4]} 47. Kc2 {[%clk 0:00:18.8]}
47... Rc8+ {[%clk 0:00:02.3]} 48. Kb3 {[%clk 0:00:18.3]} 48... Ba5 {[%clk
0:00:02]} 49. Nc4 {[%clk 0:00:18]} 49... Rb8+ {[%clk 0:00:02.5]} 50. Kc2 {[%clk
0:00:17.5]} 50... Rc8 {[%clk 0:00:02.5]} 51. Kd3 {[%clk 0:00:16.4]} 51... Rd8+
{[%clk 0:00:02.2]} 52. Ke2 {[%clk 0:00:16.8]} 52... Re8+ {[%clk 0:00:02.7]} 53.
Kf3 {[%clk 0:00:16]} 53... Bc3 {[%clk 0:00:02.7]} 54. Rd3 {[%clk 0:00:15.1]}
54... Bb4 {[%clk 0:00:03.1]} 55. Ne5 {[%clk 0:00:15.5]} 55... Ra8 {[%clk
0:00:02.9]} 56. Rd4 {[%clk 0:00:14.7]} 56... Rxa4 {[%clk 0:00:01.6]} 57. Nd3
{[%clk 0:00:15.1]} 57... Ra3 {[%clk 0:00:01.9]} 58. Rd8+ {[%clk 0:00:15.8]}
58... Kg7 {[%clk 0:00:02]} 59. Rd4 {[%clk 0:00:16.7]} 59... Bc5 {[%clk
0:00:02.2]} 60. Rd7+ {[%clk 0:00:17]} 60... Kf6 {[%clk 0:00:02.1]} 61. g4 {[%clk
0:00:17.1]} 61... fxg4+ {[%clk 0:00:02.3]} 62. Ke4 {[%clk 0:00:17.1]} 62... Bg1
{[%clk 0:00:02.6]} 63. Rd6+ {[%clk 0:00:17.3]} 63... Ke7 {[%clk 0:00:02.9]} 64.
Rc6 {[%clk 0:00:18.2]} 64... Ra4+ {[%clk 0:00:03.1]} 65. Kf5 {[%clk 0:00:18.2]}
65... h5 {[%clk 0:00:03.6]} 66. Ne5 {[%clk 0:00:18.5]} 66... Ra5 {[%clk
0:00:03.7]} 67. Re6+ {[%clk 0:00:18.8]} 67... Kd8 {[%clk 0:00:03.3]} 68. Rh6
{[%clk 0:00:19.7]} 68... Bxh2 {[%clk 0:00:02.8]} 69. Rxh5 {[%clk 0:00:19.8]}
69... g3 {[%clk 0:00:02.5]} 70. Ke6 {[%clk 0:00:20.3]} 70... Kc7 {[%clk
0:00:02.7]} 71. Rh7+ {[%clk 0:00:20.3]} 71... Kc8 {[%clk 0:00:02.8]} 72. Rh8+
{[%clk 0:00:20.3]} 72... Kb7 {[%clk 0:00:03.3]} 73. Rh7+ {[%clk 0:00:21.2]}
73... Ka6 {[%clk 0:00:03.7]} 74. Rg7 {[%clk 0:00:22.1]} 74... Ra2 {[%clk
0:00:03.6]} 75. Nd3 {[%clk 0:00:22.2]} 75... Kb5 {[%clk 0:00:03.2]} 76. Rg5+
{[%clk 0:00:21.9]} 76... Kc4 {[%clk 0:00:03.4]} 77. Ne1 {[%clk 0:00:22.1]} 77...
Re2+ {[%clk 0:00:02.8]} 78. Kf5 {[%clk 0:00:20.7]} 78... Rxe1 {[%clk 0:00:03]}
79. Rg4 {[%clk 0:00:20.5]} 79... Re2 {[%clk 0:00:03.2]} 80. Kg6 {[%clk
0:00:21.1]} 80... g2 {[%clk 0:00:03.5]} 81. f5+ {[%clk 0:00:22]} 81... Kd5
{[%clk 0:00:04.1]} 82. f6 {[%clk 0:00:22.6]} 82... g1=Q {[%clk 0:00:03.9]} 83.
Rxg1 {[%clk 0:00:22.9]} 83... Bxg1 {[%clk 0:00:04.8]} 84. f7 {[%clk 0:00:23.8]}
84... Bc5 {[%clk 0:00:05.5]} 85. Kf6 {[%clk 0:00:24.2]} 85... Rf2+ {[%clk
0:00:05.9]} 86. Kg7 {[%clk 0:00:24.6]} 86... Ke6 {[%clk 0:00:06.1]} 87. Kg8
{[%clk 0:00:25.5]} 87... Rxf7 {[%clk 0:00:05.4]} 88. Kh8 {[%clk 0:00:25.7]}
88... Kf6 {[%clk 0:00:06.1]} 0-1

[Event "Late-Titled-Tuesday-Blitz-May-28-2024"]
[Site "Chess.com"]
[Date "2024.05.28"]
[Round "5"]
[White "Dexter_Dyke"]
[Black "Cuchulin"]
[Result "1/2-1/2"]
[WhiteElo "2442"]
[BlackElo "2227"]
[TimeControl "180+1"]
[EndTime "14:57:59 PDT"]
[Termination "Game drawn by repetition"]

1. e4 {[%clk 0:03:00.9]} 1... c5 {[%clk 0:03:00.2]} 2. Nf3 {[%clk 0:03:00.7]}
2... Nc6 {[%clk 0:03:00.7]} 3. d4 {[%clk 0:03:01.2]} 3... cxd4 {[%clk
0:03:01.6]} 4. c3 {[%clk 0:03:01.8]} 4... Nf6 {[%clk 0:03:00.7]} 5. e5 {[%clk
0:03:01.6]} 5... Nd5 {[%clk 0:03:01]} 6. Bc4 {[%clk 0:03:02.2]} 6... Nb6 {[%clk
0:03:00.6]} 7. Bb3 {[%clk 0:03:02.8]} 7... d6 {[%clk 0:02:59.5]} 8. exd6 {[%clk
0:03:02.8]} 8... Qxd6 {[%clk 0:02:59.5]} 9. O-O {[%clk 0:03:03.3]} 9... dxc3
{[%clk 0:02:56.8]} 10. Qxd6 {[%clk 0:03:02]} 10... exd6 {[%clk 0:02:57.2]} 11.
Re1+ {[%clk 0:03:01]} 11... Be7 {[%clk 0:02:54.3]} 12. Nxc3 {[%clk 0:03:01.6]}
12... O-O {[%clk 0:02:53.8]} 13. Bf4 {[%clk 0:02:58.8]} 13... Bg4 {[%clk
0:02:39.2]} 14. Nb5 {[%clk 0:02:51.4]} 14... Bxf3 {[%clk 0:02:36.9]} 15. gxf3
{[%clk 0:02:52.3]} 15... d5 {[%clk 0:02:24.2]} 16. Rad1 {[%clk 0:02:37.8]} 16...
Bb4 {[%clk 0:02:19.1]} 17. Re2 {[%clk 0:02:30.5]} 17... a6 {[%clk 0:02:16.9]}
18. Nc7 {[%clk 0:02:28]} 18... Rad8 {[%clk 0:02:07.2]} 19. Nxd5 {[%clk
0:02:18.8]} 19... Nxd5 {[%clk 0:02:03.5]} 20. Rxd5 {[%clk 0:02:19.4]} 20... Rxd5
{[%clk 0:02:02.6]} 21. Bxd5 {[%clk 0:02:20.3]} 21... Rd8 {[%clk 0:02:00]} 22.
Bb3 {[%clk 0:01:59.8]} 22... Nd4 {[%clk 0:01:59.4]} 23. Re3 {[%clk 0:01:55.9]}
23... Bd2 {[%clk 0:01:53.4]} 24. Bc7 {[%clk 0:01:25.2]} 24... Bxe3 {[%clk
0:01:34.6]} 25. Bxd8 {[%clk 0:01:22.8]} 25... Bc1 {[%clk 0:01:32.3]} 26. Bd5
{[%clk 0:01:17.9]} 26... Bxb2 {[%clk 0:01:21.6]} 27. Bxb7 {[%clk 0:01:17.4]}
27... a5 {[%clk 0:01:21.9]} 28. Bxa5 {[%clk 0:01:13.5]} 28... g6 {[%clk
0:01:15.6]} 29. a4 {[%clk 0:01:04.7]} 29... Nb3 {[%clk 0:01:10.4]} 30. Bb6
{[%clk 0:01:03.7]} 30... Bc3 {[%clk 0:01:09]} 31. Bd5 {[%clk 0:01:01]} 31... Na5
{[%clk 0:01:05.8]} 32. Kf1 {[%clk 0:00:59.5]} 32... Kf8 {[%clk 0:01:02.5]} 33.
Ke2 {[%clk 0:00:59.5]} 33... Bb4 {[%clk 0:01:02.4]} 34. Kd3 {[%clk 0:00:59.2]}
34... Ke7 {[%clk 0:01:02.2]} 35. f4 {[%clk 0:00:53]} 35... f6 {[%clk 0:01:00.1]}
36. h4 {[%clk 0:00:44.9]} 36... h6 {[%clk 0:00:59.3]} 37. f5 {[%clk 0:00:33]}
37... g5 {[%clk 0:00:53.8]} 38. h5 {[%clk 0:00:32.6]} 38... Kd6 {[%clk
0:00:52.2]} 39. Ba8 {[%clk 0:00:27.4]} 39... Ke5 {[%clk 0:00:46.9]} 40. Be4
{[%clk 0:00:25]} 40... Kd6 {[%clk 0:00:35.4]} 41. Bd4 {[%clk 0:00:24.8]} 41...
Ke7 {[%clk 0:00:33.9]} 42. Bd5 {[%clk 0:00:22.5]} 42... Be1 {[%clk 0:00:26.6]}
43. Bc3 {[%clk 0:00:22]} 43... Bxc3 {[%clk 0:00:26.6]} 44. Kxc3 {[%clk
0:00:22.9]} 44... Kd6 {[%clk 0:00:26]} 45. Be6 {[%clk 0:00:23.3]} 45... Kc5
{[%clk 0:00:25.1]} 46. Bd7 {[%clk 0:00:21.9]} 46... Nb7 {[%clk 0:00:23.9]} 47.
Be6 {[%clk 0:00:20.3]} 47... Na5 {[%clk 0:00:24.3]} 48. f3 {[%clk 0:00:20.1]}
48... Nb7 {[%clk 0:00:23.9]} 49. Kd3 {[%clk 0:00:20.5]} 49... Na5 {[%clk
0:00:22.9]} 50. Bd7 {[%clk 0:00:20.9]} 50... Nb7 {[%clk 0:00:21.9]} 51. Bc8
{[%clk 0:00:20.5]} 51... Na5 {[%clk 0:00:21.7]} 52. Kc3 {[%clk 0:00:20.6]} 52...
Nc6 {[%clk 0:00:21.6]} 53. Be6 {[%clk 0:00:19.7]} 53... Na5 {[%clk 0:00:20.4]}
54. Bf7 {[%clk 0:00:18.1]} 54... Nc6 {[%clk 0:00:20.3]} 55. Be8 {[%clk
0:00:17.2]} 55... Na5 {[%clk 0:00:20]} 56. Kd3 {[%clk 0:00:17.1]} 56... Nb7
{[%clk 0:00:17.7]} 57. f4 {[%clk 0:00:14.7]} 57... g4 {[%clk 0:00:17.2]} 58. Bf7
{[%clk 0:00:12.9]} 58... Na5 {[%clk 0:00:15.4]} 59. Ke4 {[%clk 0:00:12.3]} 59...
Nc6 {[%clk 0:00:14.9]} 60. Be8 {[%clk 0:00:12.3]} 60... Na5 {[%clk 0:00:14.8]}
61. Bb5 {[%clk 0:00:11.7]} 61... Nb3 {[%clk 0:00:14.4]} 62. Ke3 {[%clk
0:00:11.2]} 62... Na5 {[%clk 0:00:12.9]} 63. Kf2 {[%clk 0:00:11.4]} 63... Kd4
{[%clk 0:00:13]} 64. Kg3 {[%clk 0:00:12]} 64... Ke3 {[%clk 0:00:13.1]} 65. Kxg4
{[%clk 0:00:12.6]} 65... Kf2 {[%clk 0:00:13.3]} 66. Bd7 {[%clk 0:00:11.9]} 66...
Nb3 {[%clk 0:00:10.5]} 67. Be6 {[%clk 0:00:12]} 67... Na5 {[%clk 0:00:09.5]} 68.
Bd5 {[%clk 0:00:12.4]} 68... Ke3 {[%clk 0:00:09.1]} 69. Kg3 {[%clk 0:00:12.1]}
69... Kd4 {[%clk 0:00:09.2]} 70. Bf3 {[%clk 0:00:12.2]} 70... Ke3 {[%clk
0:00:09.4]} 71. Ba8 {[%clk 0:00:11.4]} 71... Nc4 {[%clk 0:00:08.3]} 72. Bc6
{[%clk 0:00:10.7]} 72... Na5 {[%clk 0:00:08.7]} 73. Bb5 {[%clk 0:00:11.1]} 73...
Nb3 {[%clk 0:00:08.7]} 74. Bc6 {[%clk 0:00:11.2]} 74... Na5 {[%clk 0:00:09]} 75.
Bd5 {[%clk 0:00:11.4]} 75... Kd4 {[%clk 0:00:08.9]} 76. Be6 {[%clk 0:00:12.3]}
76... Ke3 {[%clk 0:00:09.3]} 77. Bd7 {[%clk 0:00:12.3]} 77... Nc4 {[%clk
0:00:09]} 78. Kg4 {[%clk 0:00:11]} 78... Na5 {[%clk 0:00:08.9]} 79. Bb5 {[%clk
0:00:11.4]} 79... Nb3 {[%clk 0:00:09]} 80. Bc4 {[%clk 0:00:10.8]} 80... Na5
{[%clk 0:00:09.5]} 81. Bd5 {[%clk 0:00:11.4]} 81... Kd4 {[%clk 0:00:08.7]} 82.
Bg2 {[%clk 0:00:12.3]} 82... Ke3 {[%clk 0:00:08.9]} 83. Ba8 {[%clk 0:00:12.6]}
83... Nc4 {[%clk 0:00:08.8]} 84. Bc6 {[%clk 0:00:12.5]} 84... Na5 {[%clk
0:00:09.7]} 85. Bd5 {[%clk 0:00:13]} 85... Kd4 {[%clk 0:00:08.9]} 86. Be6 {[%clk
0:00:13.5]} 86... Ke3 {[%clk 0:00:09.8]} 87. Ba2 {[%clk 0:00:12.8]} 87... Nc6
{[%clk 0:00:09.2]} 88. Bf7 {[%clk 0:00:11.4]} 88... Na5 {[%clk 0:00:09.3]} 89.
Be8 {[%clk 0:00:12.3]} 89... Nb3 {[%clk 0:00:09.1]} 90. Bc6 {[%clk 0:00:12.5]}
90... Na5 {[%clk 0:00:09.3]} 91. Bd5 {[%clk 0:00:12.1]} 1/2-1/2

[Event "Late-Titled-Tuesday-Blitz-May-28-2024"]
[Site "Chess.com"]
[Date "2024.05.28"]
[Round "5"]
[White "NMJeevanK"]
[Black "moro182"]
[Result "0-1"]
[WhiteElo "2686"]
[BlackElo "2891"]
[TimeControl "180+1"]
[EndTime "14:58:03 PDT"]
[Termination "moro182 won by checkmate"]

1. e4 {[%clk 0:03:00.9]} 1... g6 {[%clk 0:03:00.7]} 2. d4 {[%clk 0:03:00.5]}
2... Bg7 {[%clk 0:03:01.1]} 3. Nc3 {[%clk 0:03:01.3]} 3... a6 {[%clk 0:03:00.6]}
4. Be3 {[%clk 0:03:01.7]} 4... b5 {[%clk 0:03:00.5]} 5. g4 {[%clk 0:03:02.4]}
5... Bb7 {[%clk 0:03:00.4]} 6. Bg2 {[%clk 0:03:02.3]} 6... d6 {[%clk 0:02:58.2]}
7. h4 {[%clk 0:03:00.5]} 7... h6 {[%clk 0:02:58.4]} 8. Qd2 {[%clk 0:02:55.8]}
8... Nd7 {[%clk 0:02:57.9]} 9. g5 {[%clk 0:02:50]} 9... hxg5 {[%clk 0:02:51.9]}
10. hxg5 {[%clk 0:02:50.9]} 10... Rxh1 {[%clk 0:02:50.8]} 11. Bxh1 {[%clk
0:02:51.8]} 11... e6 {[%clk 0:02:50.3]} 12. O-O-O {[%clk 0:02:49.6]} 12... Nb6
{[%clk 0:02:48.9]} 13. f4 {[%clk 0:02:42.5]} 13... Nc4 {[%clk 0:02:48]} 14. Qf2
{[%clk 0:02:37.7]} 14... Ne7 {[%clk 0:02:44.2]} 15. b3 {[%clk 0:02:32.3]} 15...
Nxe3 {[%clk 0:02:44]} 16. Qxe3 {[%clk 0:02:33.2]} 16... Qd7 {[%clk 0:02:43.9]}
17. Nge2 {[%clk 0:02:22.3]} 17... O-O-O {[%clk 0:02:42.8]} 18. Bf3 {[%clk
0:02:05.9]} 18... Kb8 {[%clk 0:02:36.4]} 19. a3 {[%clk 0:02:04.6]} 19... Rh8
{[%clk 0:02:36]} 20. Rh1 {[%clk 0:02:03.8]} 20... Rxh1+ {[%clk 0:02:35.5]} 21.
Bxh1 {[%clk 0:02:04.7]} 21... Qe8 {[%clk 0:02:32.4]} 22. Qh3 {[%clk 0:02:02.8]}
22... Qh8 {[%clk 0:02:32.4]} 23. Qxh8+ {[%clk 0:01:58.8]} 23... Bxh8 {[%clk
0:02:33.3]} 24. Kd2 {[%clk 0:01:38.9]} 24... Kc8 {[%clk 0:02:33.4]} 25. Ke3
{[%clk 0:01:38.6]} 25... Kd7 {[%clk 0:02:33.7]} 26. Bf3 {[%clk 0:01:38.3]} 26...
e5 {[%clk 0:02:28.5]} 27. fxe5 {[%clk 0:01:26.1]} 27... dxe5 {[%clk 0:02:29.4]}
28. d5 {[%clk 0:01:26.3]} 28... f5 {[%clk 0:02:25.7]} 29. gxf6 {[%clk 0:01:23]}
29... Bxf6 {[%clk 0:02:25.2]} 30. Bg4+ {[%clk 0:01:23.1]} 30... Kd6 {[%clk
0:02:23.7]} 31. Nd1 {[%clk 0:01:22.4]} 31... c6 {[%clk 0:02:20.7]} 32. c4 {[%clk
0:01:21.9]} 32... Bg5+ {[%clk 0:02:12.2]} 33. Kd3 {[%clk 0:01:21.7]} 33... cxd5
{[%clk 0:02:05.4]} 34. cxd5 {[%clk 0:01:18.1]} 34... Ng8 {[%clk 0:01:59.4]} 35.
Nf2 {[%clk 0:01:11.1]} 35... Nf6 {[%clk 0:01:58.2]} 36. Bf3 {[%clk 0:01:11.5]}
36... Bc8 {[%clk 0:01:55]} 37. Ng1 {[%clk 0:01:10.2]} 37... Bd7 {[%clk
0:01:52.7]} 38. Bd1 {[%clk 0:01:01.6]} 38... Nh5 {[%clk 0:01:49.5]} 39. Ngh3
{[%clk 0:00:48.2]} 39... Bc1 {[%clk 0:01:48.2]} 40. a4 {[%clk 0:00:48.6]} 40...
bxa4 {[%clk 0:01:42.8]} 41. bxa4 {[%clk 0:00:49.5]} 41... a5 {[%clk 0:01:37.1]}
42. Ng4 {[%clk 0:00:47.5]} 42... g5 {[%clk 0:01:24.2]} 43. Kc4 {[%clk
0:00:37.2]} 43... Ng3 {[%clk 0:01:16.5]} 44. Nhf2 {[%clk 0:00:31.6]} 44... Ba3
{[%clk 0:01:09.1]} 45. Nf6 {[%clk 0:00:29]} 45... Bc8 {[%clk 0:01:01.9]} 46. Kb5
{[%clk 0:00:29.3]} 46... Bb4 {[%clk 0:00:58.6]} 47. Ne8+ {[%clk 0:00:25.6]}
47... Ke7 {[%clk 0:00:57.8]} 48. Nc7 {[%clk 0:00:25.9]} 48... Bd7+ {[%clk
0:00:57.3]} 49. Kb6 {[%clk 0:00:25.4]} 49... Nf1 {[%clk 0:00:54.7]} 50. Nb5
{[%clk 0:00:23.1]} 50... Ne3 {[%clk 0:00:54.1]} 51. Kc7 {[%clk 0:00:21.5]} 51...
Bxb5 {[%clk 0:00:43.3]} 52. axb5 {[%clk 0:00:21.4]} 52... Nxd1 {[%clk 0:00:43]}
53. Nxd1 {[%clk 0:00:20.3]} 53... a4 {[%clk 0:00:42.7]} 54. b6 {[%clk
0:00:17.8]} 54... a3 {[%clk 0:00:42.2]} 55. Ne3 {[%clk 0:00:13.5]} 55... a2
{[%clk 0:00:28.3]} 56. Nf5+ {[%clk 0:00:13.2]} 56... Kf6 {[%clk 0:00:24.9]} 57.
b7 {[%clk 0:00:13.8]} 57... a1=Q {[%clk 0:00:24.4]} 58. b8=Q {[%clk 0:00:14.3]}
58... Qa5+ {[%clk 0:00:23.4]} 59. Kd7 {[%clk 0:00:13.3]} 59... Qa4+ {[%clk
0:00:21.7]} 60. Kc8 {[%clk 0:00:07.7]} 60... Qc2+ {[%clk 0:00:21.6]} 61. Kd7
{[%clk 0:00:07.3]} 61... Qxe4 {[%clk 0:00:20.1]} 62. Qh8+ {[%clk 0:00:04.2]}
62... Kxf5 {[%clk 0:00:19.7]} 63. Qh7+ {[%clk 0:00:04.1]} 63... Kf4 {[%clk
0:00:20]} 64. Qh2+ {[%clk 0:00:04.8]} 64... Ke3 {[%clk 0:00:19.9]} 65. Qg1+
{[%clk 0:00:05.2]} 65... Kd3 {[%clk 0:00:20.2]} 66. Qd1+ {[%clk 0:00:05.1]}
66... Kc4 {[%clk 0:00:19.4]} 67. Qc1+ {[%clk 0:00:05.4]} 67... Bc3 {[%clk
0:00:18.9]} 68. Qf1+ {[%clk 0:00:05.1]} 68... Qd3 {[%clk 0:00:18.5]} 69. Qxd3+
{[%clk 0:00:03.3]} 69... Kxd3 {[%clk 0:00:19.4]} 70. Ke6 {[%clk 0:00:03.7]}
70... e4 {[%clk 0:00:19.6]} 71. d6 {[%clk 0:00:04.2]} 71... e3 {[%clk
0:00:20.5]} 72. d7 {[%clk 0:00:04.8]} 72... Ba5 {[%clk 0:00:21.4]} 73. Kf5
{[%clk 0:00:05.1]} 73... e2 {[%clk 0:00:21.5]} 74. Kg4 {[%clk 0:00:06]} 74...
e1=Q {[%clk 0:00:20.8]} 75. Kh5 {[%clk 0:00:06.9]} 75... Qe2+ {[%clk 0:00:19]}
76. Kg6 {[%clk 0:00:07.8]} 76... Bd8 {[%clk 0:00:18.8]} 77. Kg7 {[%clk
0:00:08.7]} 77... Qe7+ {[%clk 0:00:18]} 78. Kh8 {[%clk 0:00:09.6]} 78... Qxd7
{[%clk 0:00:16.9]} 79. Kg8 {[%clk 0:00:10.1]} 79... Ke4 {[%clk 0:00:17.3]} 80.
Kf8 {[%clk 0:00:11]} 80... Kf5 {[%clk 0:00:17.8]} 81. Kg8 {[%clk 0:00:11.9]}
81... Kg6 {[%clk 0:00:18.2]} 82. Kh8 {[%clk 0:00:12.8]} 82... Bf6+ {[%clk
0:00:17.1]} 83. Kg8 {[%clk 0:00:13]} 83... Qh7+ {[%clk 0:00:17.1]} 84. Kf8
{[%clk 0:00:13.2]} 84... Qe7+ {[%clk 0:00:17]} 85. Kg8 {[%clk 0:00:14.1]} 85...
Qe8# {[%clk 0:00:16.7]} 0-1